[Event "Late-Titled-Tuesday-Blitz-May-07-2024"]
[Site "Chess.com"]
[Date "2024.05.07"]
[Round "9"]
[White "moro182"]
[Black "MITerryble"]
[Result "1-0"]
[WhiteElo "2916"]
[BlackElo "3022"]
[TimeControl "180+1"]
[EndTime "15:48:54 PDT"]
[Termination "moro182 won by resignation"]

1. c4 {[%clk 0:03:00.9]} 1... e5 {[%clk 0:02:58.5]} 2. Nc3 {[%clk 0:03:01.1]}
2... Nc6 {[%clk 0:02:58.9]} 3. g3 {[%clk 0:03:00.6]} 3... g6 {[%clk 0:02:59.2]}
4. Bg2 {[%clk 0:03:01.2]} 4... Bg7 {[%clk 0:03:00.1]} 5. e3 {[%clk 0:03:01.8]}
5... Nge7 {[%clk 0:03:00.5]} 6. Nge2 {[%clk 0:03:01.8]} 6... d6 {[%clk
0:03:00.6]} 7. d3 {[%clk 0:02:57.8]} 7... Be6 {[%clk 0:02:59.8]} 8. Nd5 {[%clk
0:02:56.8]} 8... Qd7 {[%clk 0:03:00.4]} 9. h4 {[%clk 0:02:52.1]} 9... h6 {[%clk
0:02:58.3]} 10. Nec3 {[%clk 0:02:50.5]} 10... Nd8 {[%clk 0:02:53.2]} 11. Nxe7
{[%clk 0:02:47.3]} 11... Qxe7 {[%clk 0:02:54.1]} 12. b3 {[%clk 0:02:40.1]} 12...
Qd7 {[%clk 0:02:52.8]} 13. Bb2 {[%clk 0:02:39.7]} 13... c6 {[%clk 0:02:46.2]}
14. d4 {[%clk 0:02:35.2]} 14... exd4 {[%clk 0:02:44.7]} 15. exd4 {[%clk
0:02:36.1]} 15... d5 {[%clk 0:02:44.8]} 16. cxd5 {[%clk 0:02:29.1]} 16... cxd5
{[%clk 0:02:44.9]} 17. O-O {[%clk 0:02:29.5]} 17... O-O {[%clk 0:02:44.1]} 18.
Ne2 {[%clk 0:02:26.8]} 18... g5 {[%clk 0:02:33.4]} 19. hxg5 {[%clk 0:02:26.4]}
19... hxg5 {[%clk 0:02:34.3]} 20. Qd2 {[%clk 0:02:26.2]} 20... f6 {[%clk
0:02:31.5]} 21. Rfe1 {[%clk 0:02:22.3]} 21... Nc6 {[%clk 0:02:22.9]} 22. Rac1
{[%clk 0:02:22]} 22... Rfe8 {[%clk 0:02:21.5]} 23. Nc3 {[%clk 0:02:22.1]} 23...
Bf7 {[%clk 0:02:21.8]} 24. Na4 {[%clk 0:02:19.8]} 24... b6 {[%clk 0:02:18.8]}
25. Nc3 {[%clk 0:02:15.1]} 25... Ne7 {[%clk 0:02:05.3]} 26. Bf1 {[%clk 0:02:10]}
26... Ng6 {[%clk 0:01:49.9]} 27. Rxe8+ {[%clk 0:02:02.6]} 27... Qxe8 {[%clk
0:01:50]} 28. Re1 {[%clk 0:01:59.6]} 28... Qd7 {[%clk 0:01:47.8]} 29. Bg2 {[%clk
0:01:54.7]} 29... Rd8 {[%clk 0:01:44.9]} 30. Ba3 {[%clk 0:01:50]} 30... Bf8
{[%clk 0:01:37.6]} 31. Bxf8 {[%clk 0:01:49.2]} 31... Kxf8 {[%clk 0:01:36.9]} 32.
Qd3 {[%clk 0:01:48.5]} 32... Kg7 {[%clk 0:01:36.6]} 33. Qb5 {[%clk 0:01:43.5]}
33... Ne7 {[%clk 0:01:19.4]} 34. Qxd7 {[%clk 0:01:26.2]} 34... Rxd7 {[%clk
0:01:20.3]} 35. Bh3 {[%clk 0:01:26.6]} 35... f5 {[%clk 0:01:20.9]} 36. Nd1
{[%clk 0:01:07.2]} 36... Kf6 {[%clk 0:01:18.3]} 37. Ne3 {[%clk 0:01:06.7]} 37...
Be6 {[%clk 0:01:18.4]} 38. Rc1 {[%clk 0:01:05.1]} 38... Rd6 {[%clk 0:01:13.4]}
39. Rc7 {[%clk 0:01:00.6]} 39... Rd7 {[%clk 0:01:09.6]} 40. Rc3 {[%clk
0:00:54.9]} 40... Rd6 {[%clk 0:01:04.4]} 41. Rc7 {[%clk 0:00:50.8]} 41... a5
{[%clk 0:00:55.1]} 42. Kf1 {[%clk 0:00:50.3]} 42... Rd7 {[%clk 0:00:54.5]} 43.
Rc3 {[%clk 0:00:45.2]} 43... Rd6 {[%clk 0:00:53]} 44. Ke2 {[%clk 0:00:34.6]}
44... Nc6 {[%clk 0:00:50.5]} 45. Nc2 {[%clk 0:00:33.8]} 45... f4 {[%clk
0:00:48.1]} 46. gxf4 {[%clk 0:00:34.7]} 46... gxf4 {[%clk 0:00:48.3]} 47. Bxe6
{[%clk 0:00:33.4]} 47... Rxe6+ {[%clk 0:00:49.2]} 48. Kf3 {[%clk 0:00:33.5]}
48... Kf5 {[%clk 0:00:49.1]} 49. a3 {[%clk 0:00:31.1]} 49... Rh6 {[%clk
0:00:45.2]} 50. Kg2 {[%clk 0:00:27.8]} 50... Ke4 {[%clk 0:00:37]} 51. f3+ {[%clk
0:00:27.8]} 51... Kf5 {[%clk 0:00:37.6]} 52. b4 {[%clk 0:00:25.8]} 52... Re6
{[%clk 0:00:31.8]} 53. b5 {[%clk 0:00:19.6]} 53... Ne7 {[%clk 0:00:24.7]} 54.
Kf2 {[%clk 0:00:18.4]} 54... Rh6 {[%clk 0:00:25]} 55. Ne1 {[%clk 0:00:18]} 55...
Kg5 {[%clk 0:00:20.5]} 56. Kg2 {[%clk 0:00:06.6]} 56... Nf5 {[%clk 0:00:20.7]}
57. Nc2 {[%clk 0:00:07]} 57... Re6 {[%clk 0:00:19.7]} 58. Kf2 {[%clk 0:00:07.2]}
58... Rh6 {[%clk 0:00:20]} 59. Kg2 {[%clk 0:00:07.4]} 59... Rg6 {[%clk
0:00:18.3]} 60. Rc6 {[%clk 0:00:05.9]} 60... Rh6 {[%clk 0:00:12.8]} 61. a4
{[%clk 0:00:05.2]} 61... Rf6 {[%clk 0:00:06.5]} 62. Kf2 {[%clk 0:00:04.9]} 62...
Rg6 {[%clk 0:00:06.3]} 63. Rc8 {[%clk 0:00:04.7]} 63... Rh6 {[%clk 0:00:05.1]}
64. Kg2 {[%clk 0:00:05.1]} 64... Nh4+ {[%clk 0:00:03.7]} 65. Kf2 {[%clk
0:00:05]} 65... Nf5 {[%clk 0:00:04.6]} 66. Rg8+ {[%clk 0:00:04.8]} 66... Kf6
{[%clk 0:00:04.5]} 67. Rg2 {[%clk 0:00:02.3]} 67... Rg6 {[%clk 0:00:03.6]} 68.
Rh2 {[%clk 0:00:02.1]} 68... Rh6 {[%clk 0:00:04.1]} 69. Rxh6+ {[%clk 0:00:02.4]}
69... Nxh6 {[%clk 0:00:03.6]} 70. Ke2 {[%clk 0:00:01.9]} 70... Nf5 {[%clk
0:00:03.9]} 71. Kd3 {[%clk 0:00:02.6]} 71... Nh4 {[%clk 0:00:04.1]} 72. Ke2
{[%clk 0:00:02.5]} 72... Ke6 {[%clk 0:00:02.8]} 73. Ne1 {[%clk 0:00:02.8]} 73...
Nf5 {[%clk 0:00:03]} 74. Kd3 {[%clk 0:00:03.5]} 74... Nh4 {[%clk 0:00:03.1]} 75.
Ke2 {[%clk 0:00:04]} 75... Kd6 {[%clk 0:00:02.5]} 76. Nd3 {[%clk 0:00:04.2]}
76... Nf5 {[%clk 0:00:03.1]} 77. Nxf4 {[%clk 0:00:04.5]} 77... Nxd4+ {[%clk
0:00:04]} 78. Ke3 {[%clk 0:00:04.9]} 78... Nf5+ {[%clk 0:00:02.9]} 79. Kd3
{[%clk 0:00:05.4]} 79... Ke5 {[%clk 0:00:03.5]} 80. Ne2 {[%clk 0:00:05.4]} 80...
Nh4 {[%clk 0:00:02.8]} 81. f4+ {[%clk 0:00:06]} 81... Kd6 {[%clk 0:00:03.2]} 82.
Nd4 {[%clk 0:00:06.1]} 82... Ng6 {[%clk 0:00:03.7]} 83. f5 {[%clk 0:00:06.3]}
83... Ne5+ {[%clk 0:00:02.7]} 84. Ke3 {[%clk 0:00:06.6]} 84... Ke7 {[%clk
0:00:02.9]} 85. Kf4 {[%clk 0:00:06.9]} 85... Kf6 {[%clk 0:00:03.5]} 86. Ne6
{[%clk 0:00:06.1]} 86... Nd3+ {[%clk 0:00:03.1]} 87. Ke3 {[%clk 0:00:06.7]}
87... Kxf5 {[%clk 0:00:02.9]} 88. Nd4+ {[%clk 0:00:06.3]} 88... Ke5 {[%clk
0:00:01.9]} 89. Kxd3 {[%clk 0:00:07.2]} 89... Kd6 {[%clk 0:00:02.4]} 90. Nb3
{[%clk 0:00:07]} 90... Ke5 {[%clk 0:00:02.9]} 91. Nd2 {[%clk 0:00:07.4]} 91...
Ke6 {[%clk 0:00:01.6]} 92. Kd4 {[%clk 0:00:07.9]} 92... Kd6 {[%clk 0:00:02.5]}
93. Nf1 {[%clk 0:00:08.1]} 93... Ke6 {[%clk 0:00:02.6]} 94. Ne3 {[%clk 0:00:09]}
1-0

[Event "Late-Titled-Tuesday-Blitz-May-07-2024"]
[Site "Chess.com"]
[Date "2024.05.07"]
[Round "9"]
[White "PhileKhoob"]
[Black "djano"]
[Result "0-1"]
[WhiteElo "2346"]
[BlackElo "2542"]
[TimeControl "180+1"]
[EndTime "15:49:05 PDT"]
[Termination "djano won by checkmate"]

1. Nf3 {[%clk 0:02:59.4]} 1... g6 {[%clk 0:02:58.4]} 2. g3 {[%clk 0:03:00]} 2...
Bg7 {[%clk 0:02:58]} 3. d4 {[%clk 0:03:00.5]} 3... c5 {[%clk 0:02:57.2]} 4. Bg2
{[%clk 0:02:59.4]} 4... cxd4 {[%clk 0:02:56.2]} 5. Nxd4 {[%clk 0:03:00.3]} 5...
Nc6 {[%clk 0:02:56.5]} 6. Nxc6 {[%clk 0:03:00]} 6... bxc6 {[%clk 0:02:57.4]} 7.
O-O {[%clk 0:02:59.6]} 7... Nf6 {[%clk 0:02:57.3]} 8. c4 {[%clk 0:03:00.1]} 8...
O-O {[%clk 0:02:55.5]} 9. Nc3 {[%clk 0:03:00.4]} 9... Ba6 {[%clk 0:02:52.7]} 10.
Qa4 {[%clk 0:02:59.4]} 10... Qb6 {[%clk 0:02:45]} 11. Rb1 {[%clk 0:02:36.1]}
11... Bb7 {[%clk 0:02:34.3]} 12. Be3 {[%clk 0:02:15.3]} 12... Qc7 {[%clk
0:02:34.6]} 13. Bf4 {[%clk 0:02:13.5]} 13... e5 {[%clk 0:02:29.9]} 14. Bg5
{[%clk 0:01:55.5]} 14... h6 {[%clk 0:02:30.2]} 15. Bxf6 {[%clk 0:01:53.9]} 15...
Bxf6 {[%clk 0:02:31.1]} 16. Rfd1 {[%clk 0:01:54.1]} 16... Rfd8 {[%clk
0:02:26.6]} 17. Ne4 {[%clk 0:01:40.2]} 17... Be7 {[%clk 0:02:25.2]} 18. c5
{[%clk 0:01:37.5]} 18... d5 {[%clk 0:02:19.6]} 19. cxd6 {[%clk 0:01:35.5]} 19...
Bxd6 {[%clk 0:02:20.1]} 20. Rd3 {[%clk 0:01:30.9]} 20... Be7 {[%clk 0:02:19.6]}
21. Rbd1 {[%clk 0:01:07.5]} 21... Rd5 {[%clk 0:02:19.6]} 22. Nc3 {[%clk
0:01:03.4]} 22... Rxd3 {[%clk 0:02:14.8]} 23. Rxd3 {[%clk 0:01:04.3]} 23... a5
{[%clk 0:02:11.3]} 24. Rd1 {[%clk 0:00:57.9]} 24... Kg7 {[%clk 0:02:04.1]} 25.
Qc4 {[%clk 0:00:52.9]} 25... Rd8 {[%clk 0:01:57.1]} 26. Rxd8 {[%clk 0:00:21]}
26... Bxd8 {[%clk 0:01:58]} 27. Bf3 {[%clk 0:00:20.7]} 27... Qb6 {[%clk
0:01:45.2]} 28. b3 {[%clk 0:00:19.1]} 28... Be7 {[%clk 0:01:45.6]} 29. e3 {[%clk
0:00:19]} 29... Qd8 {[%clk 0:01:37.4]} 30. Kg2 {[%clk 0:00:17.5]} 30... Qd7
{[%clk 0:01:34.1]} 31. Ne4 {[%clk 0:00:15.7]} 31... Bc8 {[%clk 0:01:27]} 32. Nc5
{[%clk 0:00:15.4]} 32... Qd6 {[%clk 0:01:25.9]} 33. Ne4 {[%clk 0:00:13.4]} 33...
Qd5 {[%clk 0:01:21.1]} 34. Qc3 {[%clk 0:00:13.4]} 34... Bb4 {[%clk 0:01:20]} 35.
Qb2 {[%clk 0:00:11.4]} 35... Qe6 {[%clk 0:01:20.3]} 36. a3 {[%clk 0:00:10.6]}
36... Be7 {[%clk 0:01:19.8]} 37. b4 {[%clk 0:00:09.4]} 37... axb4 {[%clk
0:01:19.5]} 38. axb4 {[%clk 0:00:10.3]} 38... Ba6 {[%clk 0:01:19.9]} 39. Nc5
{[%clk 0:00:09.2]} 39... Bxc5 {[%clk 0:01:17.5]} 40. bxc5 {[%clk 0:00:10.1]}
40... Bd3 {[%clk 0:01:13.8]} 41. Qc3 {[%clk 0:00:08.9]} 41... Bb5 {[%clk
0:01:13]} 42. Qb4 {[%clk 0:00:05.9]} 42... h5 {[%clk 0:01:07.5]} 43. h4 {[%clk
0:00:04.9]} 43... Kh6 {[%clk 0:01:04.6]} 44. Qc3 {[%clk 0:00:05.3]} 44... f6
{[%clk 0:01:04.4]} 45. Qc1 {[%clk 0:00:05.8]} 45... g5 {[%clk 0:01:04.1]} 46.
Qa3 {[%clk 0:00:05.1]} 46... gxh4 {[%clk 0:01:00.4]} 47. gxh4 {[%clk 0:00:06]}
47... Qg8+ {[%clk 0:01:00]} 48. Kh2 {[%clk 0:00:06.6]} 48... Qe6 {[%clk
0:00:58.6]} 49. Qa8 {[%clk 0:00:06.3]} 49... Qf7 {[%clk 0:00:54.7]} 50. Qh8+
{[%clk 0:00:06.7]} 50... Qh7 {[%clk 0:00:53.4]} 51. Qxf6+ {[%clk 0:00:06.6]}
51... Qg6 {[%clk 0:00:53.4]} 52. Qxe5 {[%clk 0:00:05.4]} 52... Qc2 {[%clk
0:00:44.9]} 53. Qh8+ {[%clk 0:00:05.5]} 53... Kg6 {[%clk 0:00:44.2]} 54. Bxh5+
{[%clk 0:00:03.2]} 54... Kf5 {[%clk 0:00:44.7]} 55. Qf8+ {[%clk 0:00:03.1]}
55... Ke5 {[%clk 0:00:45.1]} 56. Qf4+ {[%clk 0:00:02.5]} 56... Kd5 {[%clk
0:00:46]} 57. Qd4+ {[%clk 0:00:02.7]} 57... Ke6 {[%clk 0:00:45.7]} 58. Bg4+
{[%clk 0:00:03.4]} 58... Ke7 {[%clk 0:00:46]} 59. Qe5+ {[%clk 0:00:03.7]} 59...
Kf8 {[%clk 0:00:46]} 60. Qf6+ {[%clk 0:00:04]} 60... Kg8 {[%clk 0:00:46.5]} 61.
Be6+ {[%clk 0:00:03.8]} 61... Kh7 {[%clk 0:00:47.2]} 62. Qf7+ {[%clk 0:00:04.2]}
62... Kh6 {[%clk 0:00:47.4]} 63. Qf8+ {[%clk 0:00:04.1]} 63... Kh5 {[%clk
0:00:47.4]} 64. Bf7+ {[%clk 0:00:04.2]} 64... Kg4 {[%clk 0:00:47.6]} 65. Qg7+
{[%clk 0:00:04.2]} 65... Kf3 {[%clk 0:00:48.1]} 66. Qg3+ {[%clk 0:00:03.9]}
66... Ke2 {[%clk 0:00:48.7]} 67. Bh5+ {[%clk 0:00:03.4]} 67... Kd2 {[%clk
0:00:48.3]} 68. Qd6+ {[%clk 0:00:03.2]} 68... Kc1 {[%clk 0:00:47.3]} 69. Qf4
{[%clk 0:00:02.8]} 69... Qxc5 {[%clk 0:00:46.2]} 70. e4+ {[%clk 0:00:03.2]}
70... Kb2 {[%clk 0:00:44.7]} 71. e5 {[%clk 0:00:03.6]} 71... Bc4 {[%clk
0:00:43.8]} 72. Qd2+ {[%clk 0:00:03]} 72... Ka3 {[%clk 0:00:42.6]} 73. f4 {[%clk
0:00:02.7]} 73... Bd5 {[%clk 0:00:41.3]} 74. Qd3+ {[%clk 0:00:02.7]} 74... Kb2
{[%clk 0:00:40]} 75. Qe2+ {[%clk 0:00:02.6]} 75... Ka3 {[%clk 0:00:38.4]} 76.
Bf3 {[%clk 0:00:02.7]} 76... Bc4 {[%clk 0:00:38.2]} 77. Qd2 {[%clk 0:00:01.9]}
77... Bb3 {[%clk 0:00:35.5]} 78. Qe2 {[%clk 0:00:01.9]} 78... Qe7 {[%clk
0:00:35.6]} 79. h5 {[%clk 0:00:02.4]} 79... Qh4+ {[%clk 0:00:35.7]} 80. Kg2
{[%clk 0:00:03]} 80... Qxf4 {[%clk 0:00:35.9]} 81. Qa6+ {[%clk 0:00:03.5]} 81...
Kb2 {[%clk 0:00:35.8]} 82. Qxc6 {[%clk 0:00:04]} 82... Qg5+ {[%clk 0:00:35]} 83.
Kf2 {[%clk 0:00:03.6]} 83... Qd2+ {[%clk 0:00:35]} 84. Kg3 {[%clk 0:00:03.3]}
84... Qg5+ {[%clk 0:00:35.2]} 85. Kh3 {[%clk 0:00:03.2]} 85... Qxe5 {[%clk
0:00:36.1]} 86. Qe4 {[%clk 0:00:03.1]} 86... Be6+ {[%clk 0:00:35.8]} 87. Kh4
{[%clk 0:00:02.5]} 87... Qf6+ {[%clk 0:00:35.8]} 88. Kg3 {[%clk 0:00:02.1]}
88... Bf5 {[%clk 0:00:36.4]} 89. Qf4 {[%clk 0:00:01.9]} 89... Qg7+ {[%clk
0:00:35.8]} 90. Kf2 {[%clk 0:00:01.9]} 90... Qa7+ {[%clk 0:00:35]} 91. Kg3
{[%clk 0:00:01.8]} 91... Qg7+ {[%clk 0:00:34.9]} 92. Kh2 {[%clk 0:00:02.5]}
92... Qd7 {[%clk 0:00:31.1]} 93. Qb4+ {[%clk 0:00:02.7]} 93... Kc1 {[%clk
0:00:30.2]} 94. Qc3+ {[%clk 0:00:02.8]} 94... Kb1 {[%clk 0:00:29.9]} 95. Qb3+
{[%clk 0:00:03.1]} 95... Kc1 {[%clk 0:00:30]} 96. h6 {[%clk 0:00:03.6]} 96...
Qd6+ {[%clk 0:00:29.4]} 97. Kh1 {[%clk 0:00:03.1]} 97... Qxh6+ {[%clk
0:00:29.3]} 98. Kg1 {[%clk 0:00:03.6]} 98... Qg5+ {[%clk 0:00:29.6]} 99. Kf1
{[%clk 0:00:03.4]} 99... Bh3+ {[%clk 0:00:28.8]} 100. Kf2 {[%clk 0:00:03.1]}
100... Qh4+ {[%clk 0:00:28.8]} 101. Ke3 {[%clk 0:00:02.6]} 101... Qg5+ {[%clk
0:00:29]} 102. Ke2 {[%clk 0:00:03]} 102... Qd2# {[%clk 0:00:24.8]} 0-1

[Event "Late-Titled-Tuesday-Blitz-May-07-2024"]
[Site "Chess.com"]
[Date "2024.05.07"]
[Round "9"]
[White "Slovafn"]
[Black "Denmark2015"]
[Result "0-1"]
[WhiteElo "2416"]
[BlackElo "2578"]
[TimeControl "180+1"]
[EndTime "15:49:07 PDT"]
[Termination "Denmark2015 won by checkmate"]

1. Nf3 {[%clk 0:02:56.6]} 1... e6 {[%clk 0:02:57.4]} 2. c4 {[%clk 0:02:57.3]}
2... d5 {[%clk 0:02:56]} 3. g3 {[%clk 0:02:58.2]} 3... Be7 {[%clk 0:02:54.6]} 4.
Bg2 {[%clk 0:02:58.9]} 4... Nf6 {[%clk 0:02:54.4]} 5. O-O {[%clk 0:02:59.3]}
5... O-O {[%clk 0:02:42.3]} 6. d3 {[%clk 0:02:59.9]} 6... Re8 {[%clk 0:02:39.3]}
7. Bf4 {[%clk 0:02:58.8]} 7... Nbd7 {[%clk 0:02:37.5]} 8. cxd5 {[%clk
0:02:56.2]} 8... Nxd5 {[%clk 0:02:34.1]} 9. Bd2 {[%clk 0:02:55.8]} 9... Bf6
{[%clk 0:02:32.3]} 10. Nc3 {[%clk 0:02:56.7]} 10... N7b6 {[%clk 0:02:31.5]} 11.
Rc1 {[%clk 0:02:54.6]} 11... c6 {[%clk 0:02:28]} 12. a3 {[%clk 0:02:45.7]} 12...
h6 {[%clk 0:02:27]} 13. Qb3 {[%clk 0:02:41.7]} 13... e5 {[%clk 0:02:18.6]} 14.
Ne4 {[%clk 0:02:40.9]} 14... Qe7 {[%clk 0:01:58.9]} 15. Nc5 {[%clk 0:02:34.9]}
15... Nd7 {[%clk 0:01:43.9]} 16. Bb4 {[%clk 0:02:14.5]} 16... Nxc5 {[%clk
0:01:41.6]} 17. Bxc5 {[%clk 0:02:13.8]} 17... Qc7 {[%clk 0:01:36.3]} 18. Nd2
{[%clk 0:02:13.2]} 18... Be6 {[%clk 0:01:34.1]} 19. Qc2 {[%clk 0:02:10.5]} 19...
Qd7 {[%clk 0:01:33.5]} 20. Ne4 {[%clk 0:02:08.7]} 20... Be7 {[%clk 0:01:26.8]}
21. Bxe7 {[%clk 0:02:08.2]} 21... Qxe7 {[%clk 0:01:27]} 22. Nc5 {[%clk
0:02:07.8]} 22... Rac8 {[%clk 0:01:06.8]} 23. Qa4 {[%clk 0:02:01]} 23... Ra8
{[%clk 0:00:51.2]} 24. Rc2 {[%clk 0:01:51.9]} 24... Nb6 {[%clk 0:00:51.1]} 25.
Qb4 {[%clk 0:01:42.6]} 25... Bd5 {[%clk 0:00:50.3]} 26. Bxd5 {[%clk 0:01:33.4]}
26... cxd5 {[%clk 0:00:50]} 27. Rfc1 {[%clk 0:01:32.2]} 27... e4 {[%clk
0:00:29.2]} 28. dxe4 {[%clk 0:01:27.9]} 28... dxe4 {[%clk 0:00:30.1]} 29. e3
{[%clk 0:01:22]} 29... Kh8 {[%clk 0:00:27.3]} 30. a4 {[%clk 0:01:21.8]} 30...
Rab8 {[%clk 0:00:26.6]} 31. a5 {[%clk 0:01:21.9]} 31... Nd5 {[%clk 0:00:26.9]}
32. Qd4 {[%clk 0:01:18.3]} 32... Nf6 {[%clk 0:00:27]} 33. Nb3 {[%clk 0:01:10.6]}
33... Rbd8 {[%clk 0:00:19]} 34. Qxa7 {[%clk 0:01:07.9]} 34... Rd7 {[%clk
0:00:18.6]} 35. Rc8 {[%clk 0:00:58.5]} 35... Kh7 {[%clk 0:00:16.9]} 36. Rxe8
{[%clk 0:00:57.3]} 36... Qxe8 {[%clk 0:00:17.3]} 37. Nd4 {[%clk 0:00:53.2]}
37... Qe7 {[%clk 0:00:15.1]} 38. Qc5 {[%clk 0:00:52.7]} 38... Qd8 {[%clk
0:00:14.7]} 39. Qf5+ {[%clk 0:00:51.4]} 39... g6 {[%clk 0:00:13.6]} 40. Qe5
{[%clk 0:00:49]} 40... Qe7 {[%clk 0:00:10.4]} 41. Qxe7 {[%clk 0:00:47.3]} 41...
Rxe7 {[%clk 0:00:11.3]} 42. b4 {[%clk 0:00:43.3]} 42... Nd5 {[%clk 0:00:11.6]}
43. b5 {[%clk 0:00:43.3]} 43... Kg7 {[%clk 0:00:11.7]} 44. h4 {[%clk 0:00:33.1]}
44... h5 {[%clk 0:00:11.6]} 45. Kf1 {[%clk 0:00:26.7]} 45... Nb4 {[%clk
0:00:11.1]} 46. Ke2 {[%clk 0:00:21.5]} 46... Nd5 {[%clk 0:00:09.9]} 47. Rc5
{[%clk 0:00:20.9]} 47... Rd7 {[%clk 0:00:09.7]} 48. b6 {[%clk 0:00:17.1]} 48...
Nb4 {[%clk 0:00:07.9]} 49. Rc7 {[%clk 0:00:14.6]} 49... Rd5 {[%clk 0:00:07.2]}
50. Nb3 {[%clk 0:00:09.4]} 50... Rb5 {[%clk 0:00:04.5]} 51. Rxb7 {[%clk
0:00:09.3]} 51... Nd3 {[%clk 0:00:04.6]} 52. Nd2 {[%clk 0:00:07.2]} 52... Rb2
{[%clk 0:00:05.5]} 53. f3 {[%clk 0:00:06.1]} 53... Nc5 {[%clk 0:00:05.7]} 54.
Rc7 {[%clk 0:00:04.5]} 54... Nb3 {[%clk 0:00:05.7]} 55. Rd7 {[%clk 0:00:03.9]}
55... exf3+ {[%clk 0:00:05.4]} 56. Kxf3 {[%clk 0:00:03.5]} 56... Nxd2+ {[%clk
0:00:06]} 57. Kf4 {[%clk 0:00:03.6]} 57... Nc4 {[%clk 0:00:06.6]} 58. b7 {[%clk
0:00:03.1]} 58... Nxa5 {[%clk 0:00:06.2]} 59. Rc7 {[%clk 0:00:01.2]} 59... Nxb7
{[%clk 0:00:06.4]} 60. Rc8 {[%clk 0:00:01.4]} 60... Nd6 {[%clk 0:00:07]} 61. Rc6
{[%clk 0:00:01.6]} 61... Nf5 {[%clk 0:00:07]} 62. Kf3 {[%clk 0:00:02.1]} 62...
Rb4 {[%clk 0:00:07.5]} 63. Rc3 {[%clk 0:00:02.2]} 63... Ra4 {[%clk 0:00:06.2]}
64. Rd3 {[%clk 0:00:02.9]} 64... Nh6 {[%clk 0:00:05.4]} 65. Rc3 {[%clk
0:00:03.6]} 65... Ng4 {[%clk 0:00:05.9]} 66. Rd3 {[%clk 0:00:04.3]} 66... Ra6
{[%clk 0:00:06.4]} 67. Rc3 {[%clk 0:00:04.8]} 67... Rf6+ {[%clk 0:00:07.3]} 68.
Ke2 {[%clk 0:00:04.2]} 68... Re6 {[%clk 0:00:08.2]} 69. Kf3 {[%clk 0:00:04.4]}
69... Kf6 {[%clk 0:00:08.7]} 70. Rb3 {[%clk 0:00:04.3]} 70... Ne5+ {[%clk
0:00:09.6]} 71. Kf2 {[%clk 0:00:04]} 71... Kf5 {[%clk 0:00:10.2]} 72. Ke2 {[%clk
0:00:04.2]} 72... Kf6 {[%clk 0:00:10.8]} 73. Rb4 {[%clk 0:00:04.7]} 73... Ng4
{[%clk 0:00:11.1]} 74. Rb3 {[%clk 0:00:05]} 74... Kg7 {[%clk 0:00:11.7]} 75. Rc3
{[%clk 0:00:05.3]} 75... Rf6 {[%clk 0:00:12.4]} 76. Ra3 {[%clk 0:00:05.9]} 76...
Rf2+ {[%clk 0:00:13]} 77. Kd3 {[%clk 0:00:06]} 77... Rf3 {[%clk 0:00:13.6]} 78.
Ke2 {[%clk 0:00:06.1]} 78... Rxg3 {[%clk 0:00:14.2]} 79. Rb3 {[%clk 0:00:06.2]}
79... Rg2+ {[%clk 0:00:14.7]} 80. Kf3 {[%clk 0:00:06.2]} 80... Rh2 {[%clk
0:00:14.1]} 81. Kg3 {[%clk 0:00:06.7]} 81... Re2 {[%clk 0:00:13.5]} 82. Kf3
{[%clk 0:00:06.9]} 82... Rxe3+ {[%clk 0:00:14]} 83. Rxe3 {[%clk 0:00:06.4]}
83... Nxe3 {[%clk 0:00:14.9]} 84. Kxe3 {[%clk 0:00:07.3]} 84... Kf6 {[%clk
0:00:14.8]} 85. Kf4 {[%clk 0:00:08.2]} 85... Ke6 {[%clk 0:00:14.9]} 86. Ke4
{[%clk 0:00:08.7]} 86... f6 {[%clk 0:00:14.9]} 87. Kf4 {[%clk 0:00:09.3]} 87...
g5+ {[%clk 0:00:15.5]} 88. hxg5 {[%clk 0:00:09.4]} 88... f5 {[%clk 0:00:13.8]}
89. Kg3 {[%clk 0:00:06.9]} 89... Kf7 {[%clk 0:00:14.1]} 90. Kf3 {[%clk
0:00:06.2]} 90... Kg7 {[%clk 0:00:14.4]} 91. Kg3 {[%clk 0:00:06.3]} 91... Kh7
{[%clk 0:00:14.2]} 92. Kf3 {[%clk 0:00:06.2]} 92... h4 {[%clk 0:00:14.7]} 93.
Kf4 {[%clk 0:00:06.3]} 93... Kg6 {[%clk 0:00:15]} 94. Kf3 {[%clk 0:00:05.2]}
94... Kxg5 {[%clk 0:00:15.5]} 95. Kf2 {[%clk 0:00:05.7]} 95... Kg4 {[%clk
0:00:16.1]} 96. Kg2 {[%clk 0:00:06.2]} 96... f4 {[%clk 0:00:15.5]} 97. Kf2
{[%clk 0:00:06.2]} 97... f3 {[%clk 0:00:16.1]} 98. Kf1 {[%clk 0:00:06.4]} 98...
Kf4 {[%clk 0:00:16.7]} 99. Kf2 {[%clk 0:00:06.7]} 99... Ke4 {[%clk 0:00:17.2]}
100. Kf1 {[%clk 0:00:06.9]} 100... Ke3 {[%clk 0:00:17.8]} 101. Kg1 {[%clk
0:00:07.5]} 101... Ke2 {[%clk 0:00:17.8]} 102. Kh2 {[%clk 0:00:08.4]} 102... f2
{[%clk 0:00:18.1]} 103. Kh3 {[%clk 0:00:08.5]} 103... f1=Q+ {[%clk 0:00:18.4]}
104. Kxh4 {[%clk 0:00:09.4]} 104... Qg1 {[%clk 0:00:18.8]} 105. Kh5 {[%clk
0:00:09.7]} 105... Kf3 {[%clk 0:00:19.3]} 106. Kh6 {[%clk 0:00:10.6]} 106... Qg8
{[%clk 0:00:19.1]} 107. Kh5 {[%clk 0:00:11.5]} 107... Qg7 {[%clk 0:00:19.6]}
108. Kh4 {[%clk 0:00:11.7]} 108... Qh6# {[%clk 0:00:20.2]} 0-1

[Event "Late-Titled-Tuesday-Blitz-May-07-2024"]
[Site "Chess.com"]
[Date "2024.05.07"]
[Round "10"]
[White "simaopdias"]
[Black "FMalexhdez"]
[Result "0-1"]
[WhiteElo "2272"]
[BlackElo "2223"]
[TimeControl "180+1"]
[EndTime "15:52:07 PDT"]
[Termination "FMalexhdez won by resignation"]

1. e4 {[%clk 0:03:00.5]} 1... c6 {[%clk 0:02:52.5]} 2. d4 {[%clk 0:03:00.4]}
2... d5 {[%clk 0:02:53]} 3. Nc3 {[%clk 0:03:00.7]} 3... dxe4 {[%clk 0:02:52.3]}
4. Nxe4 {[%clk 0:03:01.6]} 4... Nf6 {[%clk 0:02:52.6]} 5. Ng5 {[%clk 0:02:57.3]}
5... h6 {[%clk 0:02:50.3]} 6. N5f3 {[%clk 0:02:54.5]} 6... Bg4 {[%clk 0:02:48]}
7. Bf4 {[%clk 0:02:52.5]} 7... Nbd7 {[%clk 0:02:46.3]} 8. Bc4 {[%clk 0:02:52.6]}
8... e6 {[%clk 0:02:46.3]} 9. Qd3 {[%clk 0:02:51.5]} 9... b5 {[%clk 0:02:41.7]}
10. Bb3 {[%clk 0:02:51.5]} 10... a5 {[%clk 0:02:36.9]} 11. c3 {[%clk 0:02:47.2]}
11... a4 {[%clk 0:02:35.7]} 12. Bc2 {[%clk 0:02:47.5]} 12... Bf5 {[%clk
0:02:35.4]} 13. Qd2 {[%clk 0:02:47.8]} 13... Bxc2 {[%clk 0:02:34.6]} 14. Qxc2
{[%clk 0:02:48]} 14... Nd5 {[%clk 0:02:34.7]} 15. Bg3 {[%clk 0:02:45.8]} 15...
N7f6 {[%clk 0:02:34]} 16. Ne2 {[%clk 0:02:45]} 16... Bd6 {[%clk 0:02:34]} 17.
Ne5 {[%clk 0:02:45]} 17... O-O {[%clk 0:02:33.3]} 18. O-O {[%clk 0:02:45.2]}
18... Qc7 {[%clk 0:02:30.8]} 19. Rae1 {[%clk 0:02:43.6]} 19... a3 {[%clk
0:02:23.5]} 20. b3 {[%clk 0:02:43.4]} 20... c5 {[%clk 0:02:15.9]} 21. Qd2 {[%clk
0:02:37.1]} 21... c4 {[%clk 0:02:12.8]} 22. b4 {[%clk 0:02:35.9]} 22... Ne4
{[%clk 0:02:08.2]} 23. Qe3 {[%clk 0:02:30.8]} 23... Nxg3 {[%clk 0:02:07.4]} 24.
Nxg3 {[%clk 0:02:28.2]} 24... Bxe5 {[%clk 0:02:04.5]} 25. dxe5 {[%clk
0:02:26.3]} 25... Nxe3 {[%clk 0:02:04.3]} 0-1